bitfinex-derivatives/quotes_ETHF0:USTF0_20250422
["timestamp","ask_amount","ask_price","bid_price","bid_amount"]
[1745285247418,1.26539,1580.5,1580.4,3.2078]
[1745285247620,4.05801,1580.7,1580.4,3.2078]
[1745285247821,1.26532,1580.6,1580.4,3.2078]
[1745285248223,1.26539,1580.5,1580.4,3.2078]
[1745285248520,1.26534,1580.6,1580.4,3.2078]
[1745285248817,1.26539,1580.5,1580.4,3.2078]
[1745285249620,8.81229366,1580.8,1580.4,8.2078]
[1745285249820,1.26531,1580.6,1580.5,2.9001]
[1745285250122,1.26531,1580.6,1580.5,9.2221]
[1745285250316,1.26529,1580.7,1580.5,9.2221]
[1745285250723,2.88709366,1580.8,1580.5,6.322]
[1745285250916,4.47311,1580.6,1580.5,6.322]
[1745285251224,4.47311,1580.6,1580.2,2.8026]
[1745285251225,1.26551,1580.4,1580.2,2.8026]
[1745285251422,1.26555,1580.3,1580.2,2.8026]
[1745285251627,1.26563,1580.2,1580.1,6.0896]
[1745285253328,1.26555,1580.4,1580.1,12.35529]
[1745285253530,3.2078,1580.6,1580.2,2.9659]
[1745285253721,2.8578,1580.7,1580.2,2.9659]
[1745285253922,4.12311,1580.7,1580.3,3.2078]
[1745285254231,1.27465366,1580.8,1580.5,4.47314]
[1745285254530,1.27470366,1580.8,1580.6,5.6152]
[1745285254715,0.00949366,1580.8,1580.6,6.88051]
[1745285254917,0.00949366,1580.8,1580.7,1.26523]
[1745285255121,0.00949366,1580.8,1580.6,5.6152]
[1745285255122,1.27468366,1580.8,1580.6,5.6152]
[1745285255526,0.00949366,1580.8,1580.6,6.88049]
[1745285255722,0.00949366,1580.8,1580.7,4.47303]
[1745285256232,1.26476,1581.3,1581.0,1.26491]
[1745285256528,1.26476,1581.3,1581.1,2.7655]
[1745285256725,2.8275,1581.5,1581.2,40.8]
[1745285257030,1.26482,1581.3,1581.2,40.8]
[1745285257431,1.26483,1581.2,1581.1,5.70199366]
[1745285258030,1.26483,1581.2,1581.1,49.36089366]
[1745285259128,1.26483,1581.2,1581.1,46.43389366]
[1745285259930,4.09229,1581.3,1581.1,46.43389366]
[1745285260134,2.8275,1581.3,1581.1,46.43389366]
[1745285260336,1.26483,1581.2,1581.1,46.43389366]
[1745285261227,1.26483,1581.2,1581.1,43.66839366]
[1745285261528,1.27416366,1581.4,1581.1,53.14106366]
[1745285261721,0.00949366,1581.4,1581.2,2.8234]
[1745285262220,0.00949366,1581.4,1581.2,9.1454]
[1745285263222,0.00949366,1581.4,1581.3,4.03925]
[1745285263423,0.00949366,1581.4,1581.3,6.73995]
[1745285263834,0.00949366,1581.4,1581.3,5.4752]
[1745285264033,2.866,1581.8,1581.5,1.26454]
[1745285264335,2.866,1581.8,1581.6,2.7745]
[1745285264728,5.5579,1581.8,1581.6,2.7745]
[1745285265035,2.6919,1581.8,1581.6,2.7745]
[1745285265335,3.95627,1581.8,1581.6,2.7745]
[1745285265542,2.6919,1581.8,1581.6,2.7745]
[1745285265836,3.95629,1581.8,1581.6,2.7745]
[1745285266636,1.26443,1581.7,1581.6,2.7745]
[1745285266939,4.19733,1581.7,1581.6,2.7745]
[1745285267437,2.9329,1581.7,1581.6,2.7745]
[1745285267633,4.19733,1581.7,1581.6,2.7745]
[1745285268339,2.9329,1581.7,1581.6,2.7745]
[1745285268539,4.48162366,1581.9,1581.6,4.03901]
[1745285268727,7.15262366,1581.9,1581.6,4.03901]
[1745285268931,5.88829366,1581.9,1581.7,2.9493]
[1745285269334,7.15258366,1581.9,1581.7,2.9493]
[1745285270138,5.88829366,1581.9,1581.7,2.9493]
[1745285270450,0.00949366,1581.9,1581.8,1.26435]
[1745285270632,0.00949366,1581.9,1581.8,9.83385]
[1745285271436,2.671,1582.2,1581.8,8.5695]
[1745285271828,3.93507,1582.2,1581.9,4.11055]
[1745285272235,1.26419,1582.0,1581.9,6.322]
[1745285272734,4.04459,1582.0,1581.9,6.322]
[1745285273239,4.04459,1582.0,1581.8,1.27383366]
[1745285273439,2.7804,1581.9,1581.8,2.85579366]
[1745285273840,2.7804,1581.9,1581.8,4.12014366]
[1745285274242,2.7804,1581.9,1581.8,2.85579366]
[1745285274439,12.97924366,1582.1,1581.8,4.12009366]
[1745285274739,1.26426,1582.0,1581.8,2.85579366]
[1745285274947,4.10037,1581.9,1581.8,0.00949366]
[1745285275148,2.8361,1581.9,1581.8,0.00949366]
[1745285275743,2.8361,1581.9,1581.8,1.27384366]
[1745285277344,2.8361,1581.9,1581.8,4.10284366]
[1745285277549,8.50729366,1582.1,1582.0,1.26419]
[1745285277749,5.59949366,1582.1,1582.0,1.26419]
[1745285278442,8.26569366,1582.1,1582.0,1.26419]
[1745285278747,8.26569366,1582.1,1581.9,4.19224]
[1745285278940,8.26569366,1582.1,1581.9,2.928]
[1745285279141,2.6662,1582.0,1581.9,4.19227]
[1745285279448,2.6662,1582.0,1581.9,2.928]
[1745285279844,5.874,1582.0,1581.8,0.00949366]
[1745285280038,1.26427,1581.9,1581.8,0.00949366]
[1745285280244,2.6662,1581.9,1581.8,0.00949366]
[1745285280543,3.16089,1581.8,1581.1,42.06486]
[1745285280848,3.2078,1581.5,1581.2,2.8067]
[1745285281050,4.4726,1581.3,1581.0,4.14727]
[1745285281249,4.09688,1581.2,1581.0,5.689]
[1745285281444,4.09688,1581.2,1581.0,2.8067]
[1745285281949,4.09688,1581.2,1580.9,40.80949366]
[1745285282149,2.832,1581.2,1581.0,7.58698]
[1745285282356,2.832,1581.2,1581.0,10.39368]
[1745285282648,4.09684,1581.2,1581.0,6.322]
[1745285282844,3.21729366,1581.3,1581.0,6.322]
[1745285283049,0.00949366,1581.3,1581.1,4.07159]
[1745285283247,2.84149366,1581.3,1581.0,10.79473]
[1745285283448,2.84149366,1581.3,1581.1,4.07155]
[1745285283643,0.00949366,1581.3,1581.2,3.90003]
[1745285284254,0.00949366,1581.3,1581.2,8.9572]
[1745285284446,2.66609366,1581.3,1581.2,8.9572]
[1745285284851,7.13864366,1581.3,1581.2,6.322]
[1745285285046,12.50224366,1581.3,1581.2,6.322]
[1745285285252,17.50224366,1581.3,1581.2,6.30301268]
[1745285285442,12.50224366,1581.3,1581.2,6.30301268]
[1745285285650,11.23749366,1581.3,1580.9,2.64469366]
[1745285285849,2.6566,1581.2,1580.9,2.64469366]
[1745285286050,4.47277,1581.1,1580.9,0.00949366]
[1745285286253,2.6566,1581.0,1580.9,0.00949366]
[1745285286555,3.92159,1581.0,1580.9,0.00949366]
[1745285290153,8.92159,1581.0,1580.9,0.00949366]
[1745285290362,9.03296658,1581.0,1580.9,0.00949366]
[1745285290556,4.03296658,1581.0,1580.9,0.00949366]
[1745285290758,9.03296658,1581.0,1580.9,0.00949366]
[1745285291254,9.54751048,1581.0,1580.9,0.00949366]
[1745285291458,9.54751048,1581.0,1580.0,8.7928]
[1745285291459,1.2655,1580.4,1580.0,8.7928]
[1745285291656,4.4733,1580.4,1580.3,2.6453]
[1745285291858,1.26559,1580.3,1580.1,46.185]
[1745285292048,1.26563,1580.2,1580.1,8.0303]
[1745285292362,1.26563,1580.2,1579.7,5.585]
[1745285292363,1.26571,1580.1,1580.0,6.322]
[1745285292558,1.26571,1580.1,1580.0,6.33149366]
[1745285292862,9.19194567,1580.1,1580.0,6.33149366]
[1745285293164,9.19194567,1580.1,1580.0,0.00949366]
[1745285293663,4.19194567,1580.1,1580.0,0.00949366]
[1745285294659,9.19194567,1580.1,1580.0,0.00949366]
[1745285295254,7.92623567,1580.1,1579.4,11.22596142]
[1745285295462,1.26601,1579.8,1579.4,9.28440142]
[1745285295657,1.26604,1579.7,1579.4,8.01816142]
[1745285295857,3.2078,1579.8,1579.4,2.7193]
[1745285296051,1.26607,1579.7,1579.4,2.7193]
[1745285296261,1.26607,1579.7,1579.4,9.0413]
[1745285296463,3.2078,1579.8,1579.5,1.26615]
[1745285296660,8.7938,1580.0,1579.6,3.9854]
[1745285296859,8.7938,1580.0,1579.7,3.98532]
[1745285296860,4.47363,1580.0,1579.7,3.98532]
[1745285297161,2.92623567,1580.1,1579.9,1.26584]
[1745285297162,5.69843567,1580.1,1579.9,1.26584]
[1745285297361,0.11143567,1580.1,1580.0,7.19289]
[1745285297552,0.00949366,1580.3,1580.2,1.26563]
[1745285297756,1.26523,1580.7,1580.4,1.26544]
[1745285298056,5.587,1580.8,1580.5,2.7193]
[1745285298356,3.2078,1580.6,1580.5,2.7193]
[1745285298566,4.47311,1580.6,1580.5,2.7193]
[1745285299061,3.2078,1580.6,1580.5,2.7193]
[1745285299461,4.47311,1580.6,1580.5,2.7193]
[1745285300160,3.2078,1580.6,1580.5,2.7193]
[1745285300358,4.47311,1580.6,1580.5,2.7193]
[1745285301062,10.06111,1580.6,1580.5,2.7193]
[1745285301665,8.7958,1580.6,1580.5,2.7193]
[1745285301867,10.06111,1580.6,1580.5,2.7193]
[1745285303665,10.06111,1580.6,1580.1,2.6035]
[1745285303666,1.26563,1580.2,1580.1,2.6035]
[1745285303859,4.47343,1580.2,1580.1,2.6035]
[1745285304059,4.47331,1580.4,1580.1,2.6035]
[1745285304259,4.47331,1580.4,1580.2,2.8346]
[1745285304260,1.26555,1580.3,1580.2,2.8346]
[1745285304667,6.3715,1580.4,1580.0,6.322]
[1745285304871,1.26571,1580.1,1580.0,6.322]
[1745285305063,6.85371,1580.1,1580.0,6.322]
[1745285305366,1.26611,1579.7,1579.4,4.47402]
[1745285305569,1.26611,1579.7,1579.5,40.8]
[1745285305755,0.00949366,1579.7,1579.5,42.06618]
[1745285305960,1.27552366,1579.7,1579.6,2.7523]
[1745285306977,1.26611,1579.6,1579.5,6.322]
[1745285307269,1.26611,1579.6,1579.5,2.7523]
[1745285307862,2.6385,1579.6,1579.4,3.2078]
[1745285308169,2.6385,1579.6,1579.2,7.58841]
[1745285308170,1.26623,1579.5,1579.1,7.09696]
[1745285308366,1.26628,1579.4,1579.2,2.6227]
[1745285308568,1.26632,1579.4,1579.2,2.6227]
[1745285309160,1.26635,1579.3,1579.2,8.9447]
[1745285309566,7.10453,1579.4,1579.2,8.9447]
[1745285309770,4.47413,1579.4,1579.2,8.9447]
[1745285310469,4.47414,1579.4,1579.2,8.9447]
[1745285311171,1.26635,1579.3,1579.2,8.9447]
[1745285311359,4.47413,1579.4,1579.2,8.9447]
[1745285311564,1.26635,1579.3,1579.2,8.9447]
[1745285311757,4.47414,1579.4,1579.2,8.9447]
[1745285312170,1.26635,1579.3,1579.2,8.9447]
[1745285312366,3.2078,1579.4,1579.2,8.9447]
[1745285312562,3.2078,1579.4,1579.3,3.93025]
[1745285312758,0.00949366,1579.7,1579.4,1.26623]
[1745285312963,3.21729366,1579.7,1579.5,2.7322]
[1745285313166,4.48334366,1579.7,1579.5,2.7322]
[1745285313666,0.00949366,1579.7,1579.5,7.20616]
[1745285313859,0.00949366,1579.7,1579.5,5.94]
[1745285313860,1.27552366,1579.7,1579.5,5.94]
[1745285314062,0.00949366,1579.7,1579.5,12.262]
[1745285314358,0.00949366,1579.7,1579.5,13.52819]
[1745285314573,0.00949366,1579.7,1579.5,12.262]
[1745285315072,1.27560366,1579.7,1579.5,12.262]
[1745285315969,0.00949366,1579.7,1579.5,13.52817]
[1745285316167,0.00949366,1579.7,1579.5,13.52813]
[1745285316371,0.00949366,1579.7,1579.5,12.262]
[1745285316777,0.00949366,1579.7,1579.6,1.26611]
[1745285317469,1.26611,1579.6,1579.5,9.0542]
[1745285318468,1.26611,1579.6,1579.5,6.322]
[1745285318668,8.96381,1579.6,1579.5,3.00276433]
[1745285318965,6.85711,1579.6,1579.5,3.00276433]
[1745285319170,1.26619,1579.5,1579.4,2.5931]
[1745285319475,3.96389,1579.5,1579.4,2.5931]
[1745285320274,3.96389,1579.5,1579.4,8.9151]
[1745285321666,1.26616,1579.6,1579.4,8.9151]
[1745285321867,0.00949366,1579.7,1579.4,8.9151]
[1745285322075,1.26619,1579.5,1579.4,8.9151]
[1745285322269,1.26619,1579.5,1579.4,2.5931]
[1745285323069,4.06579,1579.5,1579.4,2.5931]
[1745285323269,4.06579,1579.5,1579.4,8.9151]
[1745285324275,0.00949366,1579.7,1579.6,1.26611]
[1745285324481,1.26571,1580.2,1579.6,8.2078]
[1745285324677,8.7908,1580.6,1580.1,3.2078]
[1745285324867,4.08036794,1580.5,1580.1,3.2078]
[1745285325172,4.08036794,1580.5,1580.2,2.7833]
[1745285325173,3.96981,1580.5,1580.2,2.7833]
[1745285325574,3.97930366,1580.5,1580.2,2.79279366]
[1745285325774,1.26547,1580.4,1580.2,2.79279366]
[1745285325976,3.96987,1580.4,1580.2,2.79279366]
[1745285326181,2.7044,1580.4,1580.2,9.11479366]
[1745285328087,2.7044,1580.4,1580.2,6.33149366]
[1745285328088,6.84855,1580.3,1580.2,6.33149366]
[1745285328271,6.84855,1580.3,1580.2,0.00949366]
[1745285328884,3.16418,1580.2,1579.6,5.9946]
[1745285329086,1.26579,1580.0,1579.7,2.634]
[1745285329281,1.26595,1579.8,1579.5,2.8455]
[1745285329476,8.4237,1579.7,1579.5,2.8222]
[1745285329781,5.582,1579.7,1579.5,2.8222]
[1745285329977,5.582,1579.7,1579.5,4.08832]
[1745285330177,5.582,1579.7,1579.5,9.1442]
[1745285330378,2.8417,1579.8,1579.5,9.1442]
[1745285330778,4.10767,1579.8,1579.5,9.1442]
[1745285331180,5.582,1579.9,1579.5,9.1442]
[1745285331381,8.7898,1579.9,1579.5,9.1442]
[1745285331680,1.26606,1579.7,1579.5,9.1442]
[1745285332180,4.10771,1579.8,1579.5,9.1442]
[1745285332590,5.582,1579.9,1579.5,10.41035]
[1745285332782,6.84794,1579.9,1579.5,10.41035]
[1745285333184,6.84794,1579.9,1579.6,1.26611]
[1745285333377,6.84794,1579.9,1579.7,2.5827]
[1745285334185,3.86485,1579.8,1579.7,8.9047]
[1745285334575,2.5989,1579.8,1579.7,8.9047]
[1745285334887,3.86485,1579.8,1579.7,8.9047]
[1745285335278,3.86485,1579.8,1579.7,6.322]
[1745285336282,1.26607,1579.7,1579.5,2.6201]
[1745285336488,3.93487,1579.7,1579.5,2.6201]
[1745285336690,5.83394,1579.7,1579.2,8.6943]
[1745285336984,1.26627,1579.4,1579.3,2.6201]
[1745285337785,7.14286,1579.5,1579.3,2.6201]
[1745285338001,3.2078,1579.5,1579.3,2.6201]
[1745285338177,3.2078,1579.5,1579.3,3.88645]
[1745285338383,1.27563366,1579.6,1579.3,7.6201]
[1745285338582,0.00949366,1579.6,1579.4,2.6089]
[1745285338789,2.70049366,1579.6,1579.4,2.6089]
[1745285339292,1.26619,1579.5,1579.4,6.322]
[1745285340290,0.00949366,1579.6,1579.4,6.322]
[1745285340488,1.27560366,1579.6,1579.5,2.6089]
[1745285340991,1.26619,1579.5,1579.4,6.322]
[1745285341184,2.70049366,1579.6,1579.5,6.322]
[1745285341383,3.96660366,1579.6,1579.5,6.322]
[1745285341993,0.00949366,1579.6,1579.5,6.322]
[1745285342188,1.27560366,1579.6,1579.5,6.322]
[1745285342492,6.85860366,1579.6,1579.5,6.322]
[1745285342686,5.59249366,1579.6,1579.5,6.322]
[1745285342884,5.59249366,1579.6,1579.5,9.5298]
[1745285343082,6.85860366,1579.6,1579.5,9.5298]
[1745285343287,6.85860366,1579.6,1579.5,6.322]
[1745285344093,1.26627,1579.4,1579.3,2.6089]
[1745285345696,1.26623,1579.5,1579.3,2.6089]
[1745285345896,1.26623,1579.5,1579.3,5.8167]
[1745285346088,1.26627,1579.4,1579.3,5.8167]
[1745285346288,1.26625,1579.5,1579.3,3.2078]
[1745285346790,8.29919366,1579.6,1579.3,3.2078]
[1745285346791,1.26627,1579.4,1579.3,3.2078]
[1745285347090,11.50699366,1579.6,1579.2,5.4865]
[1745285347299,1.26631,1579.4,1579.2,5.4865]
[1745285347783,8.29919366,1579.6,1579.2,5.4865]
[1745285347988,8.29919366,1579.6,1579.2,6.75291]
[1745285348183,0.00949366,1579.6,1579.2,16.8085]
[1745285348390,0.00949366,1579.6,1579.5,3.2078]
[1745285348696,1.27560366,1579.6,1579.3,4.47414]
[1745285348897,1.2662,1579.5,1579.3,3.2078]
[1745285349294,1.26624,1579.5,1579.3,3.2078]
[1745285349495,2.8068,1579.5,1579.3,3.2078]
[1745285349700,4.07306,1579.5,1579.3,3.2078]
[1745285349892,0.00949366,1579.6,1579.3,3.2078]
[1745285350098,2.81629366,1579.6,1579.3,3.2078]
[1745285350296,1.27566366,1579.6,1579.3,4.47414]
[1745285350594,1.2662,1579.5,1579.3,3.2078]
[1745285350795,0.00949366,1579.6,1579.3,3.2078]
[1745285350987,1.26635,1579.3,1579.2,11.8085]
[1745285351300,1.26635,1579.3,1579.2,5.4865]
[1745285351597,3.97572,1579.4,1579.2,5.4865]
[1745285352100,1.26635,1579.3,1579.2,5.4865]
[1745285352401,1.26635,1579.3,1579.2,11.8085]
[1745285352699,2.7094,1579.4,1579.2,11.8085]
[1745285353112,1.26635,1579.3,1579.2,11.8085]
[1745285353413,3.97574,1579.4,1579.2,11.8085]
[1745285353710,11.85439366,1579.6,1579.2,11.8085]
[1745285353913,1.2663,1579.4,1579.2,11.8085]
[1745285354100,1.26635,1579.3,1579.2,11.8085]
[1745285354511,1.26631,1579.4,1579.2,11.8085]
[1745285355112,4.48343366,1579.6,1579.3,4.47411]
[1745285355309,0.00949366,1579.6,1579.5,3.2078]
[1745285355703,0.00949366,1579.6,1579.4,1.26625]
[1745285355704,1.27560366,1579.6,1579.3,4.47408]
[1745285355905,1.26621,1579.5,1579.3,3.2078]
[1745285356107,1.27566366,1579.6,1579.3,4.47415]
[1745285356410,1.27564366,1579.6,1579.3,4.47411]
[1745285357218,1.2662,1579.5,1579.3,4.47411]
[1745285357516,1.26627,1579.4,1579.3,3.2078]
[1745285357717,1.26619,1579.5,1579.3,3.2078]
[1745285358019,1.26619,1579.5,1579.4,2.5914]
[1745285358811,5.98287366,1579.6,1579.2,11.8085]
[1745285359117,0.00949366,1579.6,1579.2,11.8085]
[1745285359313,4.08366366,1579.6,1579.3,7.06553]
[1745285359619,0.00949366,1579.6,1579.4,2.5914]
[1745285359912,0.00949366,1579.6,1579.5,4.47399]
[1745285360117,0.00949366,1579.6,1579.5,10.79599]
[1745285360313,0.00949366,1579.6,1579.5,18.38389]
[1745285361811,1.26579,1580.0,1579.8,1.26591]
[1745285362011,1.26579,1580.0,1579.9,2.5879]
[1745285363213,1.26579,1580.0,1579.9,8.9099]
[1745285364009,6.26579,1580.0,1579.9,6.322]
[1745285364315,1.26587,1579.9,1579.8,0.00949366]
[1745285364512,3.91477,1579.9,1579.8,0.00949366]
[1745285364811,9.48977,1579.9,1579.8,0.00949366]
[1745285365011,9.48977,1579.9,1579.2,13.59316142]
[1745285365012,1.26603,1579.7,1579.4,1.26626]
[1745285365509,1.26603,1579.7,1579.5,2.5885]
[1745285365711,2.6489,1579.8,1579.5,3.85469]
[1745285365908,1.26606,1579.7,1579.5,5.7963]
[1745285366109,1.26606,1579.7,1579.6,2.8598]
[1745285367013,1.26611,1579.6,1579.5,9.5298]
[1745285367314,1.26611,1579.6,1579.5,6.322]
[1745285367811,9.67721,1579.6,1579.5,6.322]
[1745285368017,12.50131,1579.6,1579.5,6.31250634]
[1745285368322,1.26643,1579.2,1579.1,3.2078]
[1745285368618,1.26639,1579.3,1579.1,6.0676]
[1745285368821,1.27588366,1579.3,1579.2,2.7351]
[1745285369206,1.27588366,1579.3,1579.2,9.0571]
[1745285371408,1.27588366,1579.3,1579.2,6.322]
[1745285372209,1.27588366,1579.3,1579.2,9.0882]
[1745285373914,0.00949366,1579.3,1579.2,10.35463]
[1745285374420,3.2078,1579.8,1579.4,1.26626]
[1745285374619,11.4693,1579.8,1579.5,2.7662]
[1745285374818,1.26611,1579.6,1579.5,2.7662]
[1745285375121,1.26611,1579.6,1579.5,9.0882]
[1745285375512,1.26611,1579.6,1579.5,6.322]
[1745285375913,3.90851,1579.6,1579.5,6.322]
[1745285376120,1.26619,1579.5,1579.4,3.21729366]
[1745285376322,9.48459,1579.5,1579.4,3.21729366]
[1745285377122,9.48459,1579.5,1579.4,9.53929366]
[1745285378023,6.84219,1579.5,1579.4,9.53929366]
[1745285379320,6.84219,1579.5,1579.4,6.33149366]
[1745285381019,0.00949366,1579.7,1579.4,9.53929366]
[1745285381221,1.27553366,1579.7,1579.5,5.5665]
[1745285381518,1.26619,1579.5,1579.4,4.82707]
[1745285381720,0.11020713,1579.5,1578.8,8.7894]
[1745285382021,1.26666,1579.0,1578.9,2.7754]
[1745285382222,1.26659,1579.1,1579.0,8.01816142]
[1745285382419,1.25732972,1579.1,1579.0,8.01816142]
[1745285382622,1.26648,1579.2,1579.0,11.22596142]
[1745285383220,5.576,1579.3,1579.0,17.54796142]
[1745285383520,1.26651,1579.1,1579.0,17.54796142]
[1745285383828,1.26649,1579.2,1579.0,17.54796142]
[1745285384024,1.2664,1579.3,1579.0,18.81454142]
[1745285384324,1.2664,1579.3,1579.0,17.54796142]
[1745285384823,1.26633,1579.4,1579.0,17.54796142]
[1745285385022,1.26633,1579.4,1579.2,3.2078]
[1745285385423,2.7129,1579.5,1579.3,5.4234]
[1745285385424,1.26622,1579.5,1579.3,5.4234]
[1745285385622,1.26622,1579.5,1579.4,5.8367]
[1745285386123,1.26622,1579.5,1579.4,12.1587]
[1745285386427,1.26622,1579.5,1579.4,8.9509]
[1745285387921,0.00949366,1579.7,1579.4,12.1587]
[1745285388127,1.27552366,1579.7,1579.6,3.2078]
[1745285388328,1.27552366,1579.7,1579.6,8.5207]
[1745285389032,0.00949366,1579.7,1579.6,8.5207]
[1745285389531,0.00949366,1579.7,1579.6,13.5207]
[1745285390825,1.27552366,1579.7,1579.6,13.5207]
[1745285391025,1.27552366,1579.7,1579.6,8.5207]
[1745285391227,0.00949366,1579.7,1579.6,8.5207]
[1745285391426,1.27552366,1579.7,1579.6,8.5207]
[1745285392222,1.27552366,1579.7,1579.6,3.2078]
[1745285392425,1.26611,1579.6,1579.5,6.322]
[1745285392625,9.59821,1579.6,1579.5,6.322]
[1745285392825,14.59821,1579.6,1579.5,6.322]
[1745285393128,1.26627,1579.4,1579.3,6.0023]
[1745285394125,1.26623,1579.5,1579.3,6.0023]
[1745285394422,0.00949366,1579.7,1579.4,2.7241]
[1745285394617,2.59419366,1579.7,1579.4,2.7241]
[1745285394819,1.26619,1579.5,1579.4,2.7241]
[1745285395027,1.26616,1579.6,1579.4,2.7241]
[1745285395223,20.46069201,1579.5,1578.5,11.22596142]
[1745285395424,3.16649,1579.0,1578.6,2.71483972]
[1745285395628,2.5847,1578.9,1578.6,2.71483972]
[1745285395828,3.85139,1578.9,1578.6,2.71483972]
[1745285396030,1.27618366,1578.9,1578.6,2.71483972]
[1745285396331,1.26675,1578.8,1578.7,3.2078]
[1745285396925,1.2669,1578.7,1578.5,22.77366142]
[1745285397119,0.00949366,1578.9,1578.5,22.77366142]
[1745285397324,2.62299366,1578.9,1578.7,3.2078]
[1745285397533,2.62299366,1578.9,1578.5,22.77366142]
[1745285397736,1.26686,1578.7,1578.5,22.77366142]
[1745285398321,1.26686,1578.7,1578.5,14.7555]
[1745285398631,1.26686,1578.7,1578.6,2.6754]
[1745285398820,1.26683,1578.7,1578.6,2.6754]
[1745285399022,2.62299366,1578.9,1578.6,2.6754]
[1745285399219,1.26683,1578.7,1578.6,2.6754]
[1745285400324,1.26682,1578.8,1578.6,2.6754]
[1745285400521,0.00949366,1578.9,1578.7,3.2078]
[1745285400832,1.27616366,1578.9,1578.8,2.5678]
[1745285401831,0.00949366,1578.9,1578.8,7.5678]
[1745285402033,0.00949366,1578.9,1578.8,8.83455]
[1745285402929,0.00949366,1578.9,1578.8,3.83455]
[1745285403526,1.27616366,1578.9,1578.8,3.83455]
[1745285403727,1.27616366,1578.9,1578.8,2.5678]
[1745285404025,1.26675,1578.8,1578.7,6.322]
[1745285404224,1.26683,1578.7,1578.6,2.6372]
[1745285405132,3.81861,1578.8,1578.6,2.6372]
[1745285405438,0.00949366,1578.9,1578.8,1.26675]
[1745285405629,1.27616366,1578.9,1578.8,5.3356]
[1745285405830,0.00949366,1578.9,1578.8,6.60235]
[1745285406737,0.00949366,1578.9,1578.8,5.3356]
[1745285406931,0.00949366,1578.9,1578.8,6.60235]
[1745285407335,8.6299,1579.5,1578.8,10.3356]
[1745285407537,96.567,1579.6,1579.3,1.26628]
[1745285407538,1.26615,1579.6,1579.3,1.26628]
[1745285407737,1.26615,1579.6,1579.4,2.5923]
[1745285407939,1.26615,1579.6,1579.4,3.85857]
[1745285408132,1.26615,1579.6,1579.4,10.18057]
[1745285408340,15.54867,1579.8,1579.6,1.2661]
[1745285408537,15.54867,1579.8,1579.7,2.6783]
[1745285408838,12.34087,1579.8,1579.7,2.6783]
[1745285409039,5.568,1579.8,1579.7,3.94433]
[1745285409231,5.568,1579.8,1579.7,9.0003]
[1745285409428,5.568,1579.8,1579.7,6.322]
[1745285409429,15.04175,1579.8,1579.7,6.322]
[1745285410140,1.26606,1579.7,1579.3,6.57119366]
[1745285410341,1.26606,1579.7,1579.4,2.6783]
[1745285410542,6.63166,1579.7,1579.4,2.6783]
[1745285410836,1.26627,1579.4,1579.3,0.00949366]
[1745285411528,3.88657,1579.4,1579.3,0.00949366]
[1745285412235,5.3656,1579.7,1579.3,0.00949366]
[1745285412431,2.6203,1579.5,1579.3,2.64189366]
[1745285412634,1.26627,1579.4,1579.3,0.00949366]
[1745285413035,3.88655,1579.5,1579.3,0.00949366]
[1745285413234,2.6203,1579.5,1579.3,1.27581366]
[1745285413544,6.63168,1579.7,1579.4,5.8402]
[1745285413746,9.25198,1579.7,1579.5,2.6324]
[1745285413944,7.9859,1579.7,1579.5,2.6324]
[1745285414243,7.9859,1579.7,1579.5,8.9544]
[1745285414439,9.25194,1579.7,1579.5,8.9544]
[1745285414643,8.7748,1579.8,1579.5,10.22058]
[1745285414844,8.7748,1579.8,1579.6,2.7233]
[1745285414845,9.51686,1579.8,1579.6,2.7233]
[1745285415144,1.26611,1579.6,1579.5,6.322]
[1745285415341,1.26627,1579.4,1579.3,0.00949366]
[1745285415937,3.95017,1579.4,1579.3,0.00949366]
[1745285417638,1.26659,1579.0,1578.9,40.8]
[1745285417842,1.26681,1578.8,1578.5,2.7597]
[1745285418039,1.26692,1578.6,1578.5,8.0801]
[1745285418240,1.26692,1578.6,1578.5,15.0353]
[1745285418439,1.26692,1578.6,1578.5,6.322]
[1745285419349,0.00949366,1578.7,1578.5,8.2078]
[1745285419541,0.00949366,1578.7,1578.6,2.7458]
[1745285419940,1.27632366,1578.7,1578.6,2.7458]
[1745285420448,0.00949366,1578.7,1578.6,2.7458]
[1745285420645,1.27632366,1578.7,1578.6,2.7458]
[1745285420946,1.27632366,1578.7,1578.5,12.1757]
[1745285420947,1.26692,1578.6,1578.5,6.322]
[1745285421134,1.267,1578.5,1578.4,0.03]
[1745285421549,2.5175,1578.6,1578.3,2.5183]
[1745285421550,1.26708,1578.4,1578.3,2.5183]
[1745285421750,2.5175,1578.6,1578.3,2.5183]
[1745285421939,2.5175,1578.6,1578.3,5.3035]
[1745285422146,3.21729366,1578.7,1578.4,3.2078]
[1745285422147,0.00949366,1578.7,1578.4,3.2078]
[1745285422343,1.27634366,1578.7,1578.4,6.99312]
[1745285422541,1.267,1578.5,1578.4,3.2078]
[1745285422850,3.78447,1578.6,1578.4,3.2078]
[1745285423043,3.78447,1578.6,1578.4,5.7261]
[1745285423237,1.26697,1578.6,1578.5,2.5183]
[1745285423445,0.00949366,1578.7,1578.5,2.5183]
[1745285423642,0.00949366,1578.7,1578.6,4.47472]
[1745285423848,1.26658,1579.1,1578.8,1.26669]
[1745285424047,2.6275,1579.3,1578.9,12.59062]
[1745285424260,2.6275,1579.3,1579.1,3.2078]
[1745285424551,3.89385,1579.3,1579.2,2.5497]
[1745285425248,5.56849366,1579.4,1579.2,8.8717]
[1745285425650,0.00949366,1579.4,1579.2,6.322]
[1745285425851,1.27577366,1579.4,1579.2,6.322]
[1745285426049,0.00949366,1579.4,1579.2,6.322]
[1745285426248,1.27578366,1579.4,1579.2,6.322]
[1745285426551,1.27579366,1579.4,1579.2,6.322]
[1745285426751,1.27579366,1579.4,1579.3,2.6103]